[Event "*** Titled Tuesday Blitz"]
[Site "Chess.com"]
[Date "2021.02.16"]
[Round "8"]
[White "Nikolakis2014"]
[Black "bocah_sakit"]
[Result "0-1"]
[WhiteElo "2648"]
[BlackElo "2846"]
[TimeControl "180+1"]
[EndTime "11:28:15 PST"]
[Termination "bocah_sakit won by resignation"]

1. Nf3 {[%clk 0:03:00.9]} 1... Nf6 {[%clk 0:02:59.5]} 2. c4 {[%clk 0:03:00.8]}
2... g6 {[%clk 0:03:00.4]} 3. Nc3 {[%clk 0:03:00.6]} 3... Bg7 {[%clk 0:03:01.3]}
4. g3 {[%clk 0:03:01.2]} 4... O-O {[%clk 0:03:02.2]} 5. Bg2 {[%clk 0:03:01.5]}
5... d6 {[%clk 0:03:03.1]} 6. d4 {[%clk 0:03:01.7]} 6... Nc6 {[%clk 0:03:02.6]}
7. O-O {[%clk 0:03:01.1]} 7... e5 {[%clk 0:03:00.7]} 8. dxe5 {[%clk 0:03:00.4]}
8... dxe5 {[%clk 0:03:01.6]} 9. Bg5 {[%clk 0:02:58.1]} 9... Be6 {[%clk
0:02:57.1]} 10. Qc1 {[%clk 0:02:55.1]} 10... Qc8 {[%clk 0:02:54.5]} 11. b4
{[%clk 0:02:51.5]} 11... Nd7 {[%clk 0:02:13]} 12. Nd5 {[%clk 0:02:22.2]} 12...
e4 {[%clk 0:02:08.3]} 13. Nd2 {[%clk 0:02:18.5]} 13... f5 {[%clk 0:02:07.2]} 14.
Rb1 {[%clk 0:02:05.6]} 14... Nb6 {[%clk 0:02:01.5]} 15. b5 {[%clk 0:01:43.9]}
15... Bxd5 {[%clk 0:01:58.4]} 16. cxd5 {[%clk 0:01:43.6]} 16... Nd4 {[%clk
0:01:58.9]} 17. Re1 {[%clk 0:01:43.6]} 17... Nxd5 {[%clk 0:01:54.6]} 18. Qc4
{[%clk 0:01:35.3]} 18... c6 {[%clk 0:01:54.9]} 19. Nb3 {[%clk 0:01:27.9]} 19...
Ne6 {[%clk 0:01:52.3]} 20. Bd2 {[%clk 0:01:21.5]} 20... Nb6 {[%clk 0:01:49.9]}
21. Qc1 {[%clk 0:01:15.7]} 21... cxb5 {[%clk 0:01:46.2]} 22. Na5 {[%clk
0:01:15.7]} 22... Qd7 {[%clk 0:01:38]} 23. Rd1 {[%clk 0:01:11.6]} 23... Nd4
{[%clk 0:01:32.4]} 24. Kf1 {[%clk 0:01:08.8]} 24... Rac8 {[%clk 0:01:31.4]} 25.
Qa3 {[%clk 0:01:08.4]} 25... Qf7 {[%clk 0:01:09.6]} 26. Bf4 {[%clk 0:00:44.5]}
26... Rfd8 {[%clk 0:01:08.9]} 27. h3 {[%clk 0:00:41.6]} 27... a6 {[%clk
0:01:03.5]} 28. Be3 {[%clk 0:00:39.5]} 28... Nc2 {[%clk 0:01:01.9]} 29. Rxd8+
{[%clk 0:00:38.3]} 29... Rxd8 {[%clk 0:01:02.8]} 30. Qb3 {[%clk 0:00:33]} 30...
Qxb3 {[%clk 0:01:03.2]} 31. axb3 {[%clk 0:00:31.9]} 31... Nxe3+ {[%clk
0:01:03.6]} 32. fxe3 {[%clk 0:00:31.8]} 32... Nd5 {[%clk 0:01:04.1]} 0-1

[Event "*** Titled Tuesday Blitz"]
[Site "Chess.com"]
[Date "2021.02.16"]
[Round "8"]
[White "dpopadic"]
[Black "Pintacara"]
[Result "0-1"]
[WhiteElo "2358"]
[BlackElo "2497"]
[TimeControl "180+1"]
[EndTime "11:28:16 PST"]
[Termination "Pintacara won by resignation"]

1. e4 {[%clk 0:02:52.6]} 1... c5 {[%clk 0:02:56.5]} 2. Nc3 {[%clk 0:02:50.6]}
2... e6 {[%clk 0:02:50.8]} 3. d3 {[%clk 0:02:49.7]} 3... a6 {[%clk 0:02:38.1]}
4. g4 {[%clk 0:02:49.2]} 4... b5 {[%clk 0:02:19.4]} 5. Bg2 {[%clk 0:02:48.8]}
5... Bb7 {[%clk 0:02:15]} 6. Nh3 {[%clk 0:02:48.7]} 6... b4 {[%clk 0:02:09.7]}
7. Ne2 {[%clk 0:02:48]} 7... d5 {[%clk 0:02:08.6]} 8. O-O {[%clk 0:02:47.8]}
8... Ne7 {[%clk 0:01:46]} 9. Ng3 {[%clk 0:02:46.2]} 9... g6 {[%clk 0:01:24.3]}
10. c3 {[%clk 0:02:45.1]} 10... a5 {[%clk 0:01:15.9]} 11. Be3 {[%clk 0:02:41.1]}
11... Nd7 {[%clk 0:01:13.7]} 12. Rc1 {[%clk 0:02:32.8]} 12... Bg7 {[%clk
0:01:11.9]} 13. Nf4 {[%clk 0:02:24.6]} 13... O-O {[%clk 0:00:59.2]} 14. Qd2
{[%clk 0:02:16]} 14... d4 {[%clk 0:00:47.4]} 15. cxd4 {[%clk 0:02:15.2]} 15...
cxd4 {[%clk 0:00:48.3]} 16. Nxe6 {[%clk 0:02:03.6]} 16... dxe3 {[%clk
0:00:40.7]} 17. Nxd8 {[%clk 0:02:03.5]} 17... exd2 {[%clk 0:00:41.1]} 18. Rc7
{[%clk 0:02:03.1]} 18... Rfxd8 {[%clk 0:00:37.8]} 19. Rxb7 {[%clk 0:02:02.8]}
19... Rac8 {[%clk 0:00:36.4]} 20. Bf3 {[%clk 0:02:01.1]} 20... Rc1 {[%clk
0:00:34.8]} 21. Bd1 {[%clk 0:01:55.7]} 21... Nc6 {[%clk 0:00:19.6]} 22. Ne2
{[%clk 0:01:49.4]} 22... Ra1 {[%clk 0:00:19.2]} 23. a3 {[%clk 0:01:41.8]} 23...
bxa3 {[%clk 0:00:17.2]} 24. bxa3 {[%clk 0:01:41.3]} 24... Nd4 {[%clk 0:00:17.4]}
25. Nxd4 {[%clk 0:01:38.9]} 25... Bxd4 {[%clk 0:00:18.3]} 26. Kg2 {[%clk
0:01:37.1]} 26... Nc5 {[%clk 0:00:18.1]} 27. Rb5 {[%clk 0:01:32.3]} 27... Nxd3
{[%clk 0:00:18]} 28. Rxa5 {[%clk 0:01:32.1]} 28... Nxf2 {[%clk 0:00:18.3]} 29.
Bf3 {[%clk 0:01:29]} 29... Rxf1 {[%clk 0:00:17]} 30. Kxf1 {[%clk 0:01:29]} 30...
d1=Q+ {[%clk 0:00:16.4]} 31. Bxd1 {[%clk 0:01:29]} 31... Nxd1 {[%clk 0:00:17.3]}
32. Rd5 {[%clk 0:01:18.6]} 32... Ne3+ {[%clk 0:00:17.1]} 33. Ke2 {[%clk
0:01:18]} 33... Nxd5 {[%clk 0:00:18]} 0-1

[Event "*** Titled Tuesday Blitz"]
[Site "Chess.com"]
[Date "2021.02.16"]
[Round "8"]
[White "IceBelka"]
[Black "Titus369"]
[Result "0-1"]
[WhiteElo "2396"]
[BlackElo "2562"]
[TimeControl "180+1"]
[EndTime "11:28:27 PST"]
[Termination "Titus369 won by resignation"]

1. e4 {[%clk 0:03:00.9]} 1... c5 {[%clk 0:02:58.4]} 2. Nf3 {[%clk 0:03:00.2]}
2... d6 {[%clk 0:02:56.2]} 3. d4 {[%clk 0:02:59.7]} 3... cxd4 {[%clk 0:02:57.1]}
4. Nxd4 {[%clk 0:03:00.2]} 4... Nf6 {[%clk 0:02:57.3]} 5. Nc3 {[%clk 0:02:59.8]}
5... a6 {[%clk 0:02:57.7]} 6. Be3 {[%clk 0:02:59.4]} 6... e6 {[%clk 0:02:57]} 7.
f3 {[%clk 0:02:58.5]} 7... Nbd7 {[%clk 0:02:52]} 8. Qd2 {[%clk 0:02:56.8]} 8...
b5 {[%clk 0:02:51.2]} 9. g4 {[%clk 0:02:54.9]} 9... h6 {[%clk 0:02:51.3]} 10. a3
{[%clk 0:02:46.7]} 10... Bb7 {[%clk 0:02:46.7]} 11. O-O-O {[%clk 0:02:45.3]}
11... Rc8 {[%clk 0:02:43.5]} 12. Be2 {[%clk 0:02:40.9]} 12... Ne5 {[%clk
0:02:40.5]} 13. h4 {[%clk 0:02:40.2]} 13... Nc4 {[%clk 0:02:39.9]} 14. Bxc4
{[%clk 0:02:39.7]} 14... Rxc4 {[%clk 0:02:40.8]} 15. g5 {[%clk 0:02:38.7]} 15...
Nd7 {[%clk 0:02:37.8]} 16. g6 {[%clk 0:02:37.5]} 16... Be7 {[%clk 0:02:30.5]}
17. gxf7+ {[%clk 0:02:36.3]} 17... Kxf7 {[%clk 0:02:31.4]} 18. Qg2 {[%clk
0:02:26]} 18... Bf6 {[%clk 0:02:28.9]} 19. Nce2 {[%clk 0:02:23.5]} 19... Qc7
{[%clk 0:02:20.2]} 20. Rd2 {[%clk 0:01:59.4]} 20... Rc8 {[%clk 0:02:06.5]} 21.
c3 {[%clk 0:01:42.7]} 21... b4 {[%clk 0:02:00.4]} 22. axb4 {[%clk 0:01:41.3]}
22... Rxb4 {[%clk 0:01:59.6]} 23. Qg4 {[%clk 0:01:33.9]} 23... Nf8 {[%clk
0:01:56.8]} 24. Kb1 {[%clk 0:01:14.7]} 24... Ra4 {[%clk 0:01:52.7]} 25. Rg1
{[%clk 0:00:48.7]} 25... Qa5 {[%clk 0:01:49.7]} 26. Nb3 {[%clk 0:00:46.7]} 26...
Qb5 {[%clk 0:01:48.2]} 27. Ned4 {[%clk 0:00:43.5]} 27... Qc4 {[%clk 0:01:41.5]}
28. Qh5+ {[%clk 0:00:35.1]} 28... Ke7 {[%clk 0:01:38.4]} 29. Na5 {[%clk
0:00:29.7]} 29... Qa2+ {[%clk 0:01:29.4]} 30. Kc2 {[%clk 0:00:29.6]} 30... Rxa5
{[%clk 0:01:30.3]} 31. Qg4 {[%clk 0:00:20.9]} 31... Ra4 {[%clk 0:01:16.7]} 32.
Qg2 {[%clk 0:00:05.6]} 32... Rxc3+ {[%clk 0:01:15.9]} 33. Kd1 {[%clk 0:00:05.3]}
33... Rxe3 {[%clk 0:01:14.7]} 0-1

[Event "*** Titled Tuesday Blitz"]
[Site "Chess.com"]
[Date "2021.02.16"]
[Round "8"]
[White "DrVelja"]
[Black "Rozum_Ivan"]
[Result "1-0"]
[WhiteElo "2879"]
[BlackElo "2761"]
[TimeControl "180+1"]
[EndTime "11:28:28 PST"]
[Termination "DrVelja won by resignation"]

1. e4 {[%clk 0:03:00.9]} 1... e5 {[%clk 0:02:55]} 2. Nf3 {[%clk 0:03:00.2]} 2...
Nf6 {[%clk 0:02:54.5]} 3. d4 {[%clk 0:02:52.4]} 3... Nxe4 {[%clk 0:02:49.4]} 4.
dxe5 {[%clk 0:02:53.3]} 4... d5 {[%clk 0:02:49.5]} 5. Nbd2 {[%clk 0:02:53.2]}
5... Nc5 {[%clk 0:02:48.2]} 6. Nb3 {[%clk 0:02:53.2]} 6... Nc6 {[%clk
0:02:30.9]} 7. Bb5 {[%clk 0:02:46]} 7... a6 {[%clk 0:02:23]} 8. Bxc6+ {[%clk
0:02:45.4]} 8... bxc6 {[%clk 0:02:23.9]} 9. O-O {[%clk 0:02:45.7]} 9... Be7
{[%clk 0:02:21.5]} 10. Nfd4 {[%clk 0:02:36.3]} 10... Nxb3 {[%clk 0:02:01.3]} 11.
axb3 {[%clk 0:02:24]} 11... Bd7 {[%clk 0:01:49.7]} 12. f4 {[%clk 0:02:16.4]}
12... c5 {[%clk 0:01:47.2]} 13. Ne2 {[%clk 0:02:13.9]} 13... Bc6 {[%clk
0:01:33.5]} 14. f5 {[%clk 0:02:10.8]} 14... d4 {[%clk 0:01:28.4]} 15. Nf4 {[%clk
0:02:11.3]} 15... Bg5 {[%clk 0:01:22.8]} 16. Qg4 {[%clk 0:02:07.4]} 16... O-O
{[%clk 0:01:19.9]} 17. Nh5 {[%clk 0:02:05.9]} 17... h6 {[%clk 0:01:03.4]} 18. f6
{[%clk 0:01:09.7]} 18... Qd7 {[%clk 0:00:20.5]} 19. Qg3 {[%clk 0:01:07.2]} 19...
g6 {[%clk 0:00:20.5]} 20. Bxg5 {[%clk 0:01:06.6]} 20... hxg5 {[%clk 0:00:20.8]}
21. Qxg5 {[%clk 0:01:04.1]} 21... Kh7 {[%clk 0:00:21.2]} 22. Nf4 {[%clk
0:00:57.9]} 22... Rh8 {[%clk 0:00:20.7]} 23. e6 {[%clk 0:00:57.9]} 23... Qe8
{[%clk 0:00:17]} 24. Rae1 {[%clk 0:00:56.7]} 24... Kg8 {[%clk 0:00:12.6]} 25.
exf7+ {[%clk 0:00:55]} 25... Qxf7 {[%clk 0:00:13.5]} 26. Re7 {[%clk 0:00:55.4]}
1-0

[Event "*** Titled Tuesday Blitz"]
[Site "Chess.com"]
[Date "2021.02.16"]
[Round "8"]
[White "Moultino06"]
[Black "ChessQueen"]
[Result "0-1"]
[WhiteElo "2507"]
[BlackElo "2737"]
[TimeControl "180+1"]
[EndTime "11:28:41 PST"]
[Termination "ChessQueen won on time"]

1. b3 {[%clk 0:03:00.9]} 1... b6 {[%clk 0:02:57.6]} 2. Bb2 {[%clk 0:03:00.1]}
2... Bb7 {[%clk 0:02:58.1]} 3. Nf3 {[%clk 0:03:00.3]} 3... Nf6 {[%clk
0:02:57.8]} 4. e3 {[%clk 0:02:58.6]} 4... g6 {[%clk 0:02:57.3]} 5. c4 {[%clk
0:02:57.5]} 5... Bg7 {[%clk 0:02:57.5]} 6. Be2 {[%clk 0:02:57.9]} 6... c5 {[%clk
0:02:50.5]} 7. O-O {[%clk 0:02:57.2]} 7... O-O {[%clk 0:02:50.2]} 8. d4 {[%clk
0:02:57.6]} 8... cxd4 {[%clk 0:02:50.2]} 9. Nxd4 {[%clk 0:02:57.2]} 9... d6
{[%clk 0:02:48.8]} 10. Nc3 {[%clk 0:02:56.2]} 10... Nc6 {[%clk 0:02:47.9]} 11.
Bf3 {[%clk 0:02:47.5]} 11... Qd7 {[%clk 0:02:47.9]} 12. Nxc6 {[%clk 0:02:31.3]}
12... Bxc6 {[%clk 0:02:48]} 13. Nd5 {[%clk 0:02:31.9]} 13... e5 {[%clk
0:02:05.4]} 14. a4 {[%clk 0:02:11]} 14... Rac8 {[%clk 0:01:59.4]} 15. Qd2 {[%clk
0:02:03.8]} 15... Rfd8 {[%clk 0:01:57.5]} 16. Rfd1 {[%clk 0:02:03]} 16... Ne8
{[%clk 0:01:52.4]} 17. Rac1 {[%clk 0:01:52.8]} 17... Qb7 {[%clk 0:01:51]} 18.
Be2 {[%clk 0:01:32.6]} 18... f5 {[%clk 0:01:47.7]} 19. h4 {[%clk 0:01:28.4]}
19... Nf6 {[%clk 0:01:41.6]} 20. h5 {[%clk 0:01:24.3]} 20... Ne4 {[%clk
0:01:35.9]} 21. Qb4 {[%clk 0:01:10.8]} 21... Nc5 {[%clk 0:01:24.1]} 22. hxg6
{[%clk 0:00:41.1]} 22... hxg6 {[%clk 0:01:23.9]} 23. f3 {[%clk 0:00:41.6]} 23...
Kf7 {[%clk 0:01:15.2]} 24. Kf2 {[%clk 0:00:40.6]} 24... Rh8 {[%clk 0:01:12.5]}
25. Rh1 {[%clk 0:00:36]} 25... Bxd5 {[%clk 0:01:10.4]} 26. cxd5 {[%clk
0:00:35.5]} 26... Qe7 {[%clk 0:01:08.4]} 27. Qb5 {[%clk 0:00:19.9]} 27... Bf6
{[%clk 0:01:02]} 28. g3 {[%clk 0:00:08.1]} 28... f4 {[%clk 0:00:58.7]} 29. gxf4
{[%clk 0:00:04]} 29... exf4 {[%clk 0:00:59.2]} 0-1

[Event "*** Titled Tuesday Blitz"]
[Site "Chess.com"]
[Date "2021.02.16"]
[Round "8"]
[White "frankshar"]
[Black "lagedema"]
[Result "1/2-1/2"]
[WhiteElo "2411"]
[BlackElo "2565"]
[TimeControl "180+1"]
[EndTime "11:28:42 PST"]
[Termination "Game drawn by agreement"]

1. d4 {[%clk 0:03:00.9]} 1... d5 {[%clk 0:02:59.2]} 2. c4 {[%clk 0:03:00.7]}
2... c6 {[%clk 0:02:58.9]} 3. Nc3 {[%clk 0:03:00.3]} 3... Nf6 {[%clk 0:02:58.7]}
4. e3 {[%clk 0:03:00.2]} 4... Bf5 {[%clk 0:02:58.2]} 5. cxd5 {[%clk 0:02:57.8]}
5... cxd5 {[%clk 0:02:58.5]} 6. Qb3 {[%clk 0:02:57.6]} 6... Nc6 {[%clk
0:02:58.8]} 7. Qxb7 {[%clk 0:02:57]} 7... Bd7 {[%clk 0:02:59.4]} 8. Qb3 {[%clk
0:02:51]} 8... Rb8 {[%clk 0:02:59]} 9. Qd1 {[%clk 0:02:50.6]} 9... e5 {[%clk
0:02:59.7]} 10. Nge2 {[%clk 0:02:47.1]} 10... Bd6 {[%clk 0:02:59.4]} 11. dxe5
{[%clk 0:02:37.1]} 11... Nxe5 {[%clk 0:02:58.2]} 12. Nd4 {[%clk 0:02:33.2]}
12... O-O {[%clk 0:02:58.1]} 13. Be2 {[%clk 0:02:24.6]} 13... Nc4 {[%clk
0:02:51.2]} 14. O-O {[%clk 0:02:18.5]} 14... Nxb2 {[%clk 0:02:44.4]} 15. Bxb2
{[%clk 0:02:17.9]} 15... Rxb2 {[%clk 0:02:44.9]} 16. Nb3 {[%clk 0:02:02.8]}
16... Bxh2+ {[%clk 0:02:41.8]} 17. Kxh2 {[%clk 0:02:00.3]} 17... Qc7+ {[%clk
0:02:41.9]} 18. Kg1 {[%clk 0:02:00]} 18... Qxc3 {[%clk 0:02:41.9]} 19. Bf3
{[%clk 0:01:53.2]} 19... Bb5 {[%clk 0:02:22.9]} 20. Re1 {[%clk 0:01:49.3]} 20...
Bc4 {[%clk 0:02:22.1]} 21. Qc1 {[%clk 0:01:31.1]} 21... Qxc1 {[%clk 0:02:20.4]}
22. Rexc1 {[%clk 0:01:31.1]} 22... Rb8 {[%clk 0:02:09.7]} 23. Rc3 {[%clk
0:01:31.1]} 23... g6 {[%clk 0:02:07.2]} 24. Nd4 {[%clk 0:01:28.7]} 24... Rd2
{[%clk 0:01:44.7]} 25. Nb3 {[%clk 0:01:22.1]} 25... Rb2 {[%clk 0:01:43.8]} 26.
Nd4 {[%clk 0:01:22]} 26... Kg7 {[%clk 0:01:42.9]} 27. Ra3 {[%clk 0:01:18.8]}
27... R8b7 {[%clk 0:01:42.8]} 28. Nc6 {[%clk 0:01:09.4]} 28... a6 {[%clk
0:01:39]} 29. Na5 {[%clk 0:01:07.4]} 29... Rc7 {[%clk 0:01:37.1]} 30. Nxc4
{[%clk 0:01:01.3]} 30... dxc4 {[%clk 0:01:37.6]} 31. Rc1 {[%clk 0:01:01.1]}
31... c3 {[%clk 0:01:32.7]} 32. Raxc3 {[%clk 0:00:56.5]} 32... Rxc3 {[%clk
0:01:32.3]} 33. Rxc3 {[%clk 0:00:57.4]} 33... Rxa2 {[%clk 0:01:32.1]} 34. Rc7
{[%clk 0:00:57.6]} 34... a5 {[%clk 0:01:32.3]} 35. Ra7 {[%clk 0:00:56.8]} 35...
a4 {[%clk 0:01:30.5]} 36. e4 {[%clk 0:00:45.5]} 36... Ra1+ {[%clk 0:01:01.8]}
37. Kh2 {[%clk 0:00:45.2]} 37... Re1 {[%clk 0:00:49]} 38. Rxa4 {[%clk
0:00:43.4]} 38... Nd7 {[%clk 0:00:49.3]} 1/2-1/2

[Event "*** Titled Tuesday Blitz"]
[Site "Chess.com"]
[Date "2021.02.16"]
[Round "8"]
[White "German_Bazeev"]
[Black "TregubovP"]
[Result "1-0"]
[WhiteElo "2743"]
[BlackElo "2557"]
[TimeControl "180+1"]
[EndTime "11:28:47 PST"]
[Termination "German_Bazeev won by resignation"]

1. d4 {[%clk 0:02:48]} 1... Nf6 {[%clk 0:02:59.8]} 2. Nf3 {[%clk 0:02:47.6]}
2... e6 {[%clk 0:03:00]} 3. c4 {[%clk 0:02:48.1]} 3... Bb4+ {[%clk 0:02:59.5]}
4. Bd2 {[%clk 0:02:47.4]} 4... Qe7 {[%clk 0:02:59.8]} 5. g3 {[%clk 0:02:46.6]}
5... Bxd2+ {[%clk 0:02:59.4]} 6. Nbxd2 {[%clk 0:02:45.3]} 6... d6 {[%clk
0:02:58.5]} 7. Bg2 {[%clk 0:02:45.7]} 7... e5 {[%clk 0:02:59]} 8. Nf1 {[%clk
0:02:43.3]} 8... O-O {[%clk 0:02:47.6]} 9. Ne3 {[%clk 0:02:36.2]} 9... c6 {[%clk
0:02:33.7]} 10. d5 {[%clk 0:02:24.4]} 10... Ng4 {[%clk 0:02:30.9]} 11. Nxg4
{[%clk 0:02:21.7]} 11... Bxg4 {[%clk 0:02:30.2]} 12. O-O {[%clk 0:02:21.1]}
12... e4 {[%clk 0:02:23.1]} 13. Nd4 {[%clk 0:02:19.6]} 13... c5 {[%clk 0:02:22]}
14. Nc2 {[%clk 0:02:17.2]} 14... Nd7 {[%clk 0:02:19.9]} 15. Ne3 {[%clk
0:02:15.5]} 15... Bh5 {[%clk 0:02:19.8]} 16. Qd2 {[%clk 0:02:07.8]} 16... f5
{[%clk 0:02:18.2]} 17. f4 {[%clk 0:02:04.3]} 17... exf3 {[%clk 0:02:15.5]} 18.
exf3 {[%clk 0:01:59.1]} 18... f4 {[%clk 0:02:15.4]} 19. gxf4 {[%clk 0:01:45]}
19... Rxf4 {[%clk 0:02:15.2]} 20. Rae1 {[%clk 0:01:43.5]} 20... Qg5 {[%clk
0:02:11.6]} 21. Qf2 {[%clk 0:01:37.4]} 21... Ne5 {[%clk 0:02:05.1]} 22. Qg3
{[%clk 0:01:35.2]} 22... Qh6 {[%clk 0:01:39.3]} 23. h3 {[%clk 0:01:23.5]} 23...
Raf8 {[%clk 0:01:24.2]} 24. Ng4 {[%clk 0:01:23.1]} 24... Qg5 {[%clk 0:01:12.8]}
25. b3 {[%clk 0:01:15.1]} 25... Be8 {[%clk 0:01:01.1]} 26. Kh2 {[%clk
0:01:12.9]} 26... Ng6 {[%clk 0:00:55]} 27. Nf2 {[%clk 0:01:08.5]} 27... Qxg3+
{[%clk 0:00:53.9]} 28. Kxg3 {[%clk 0:01:09.4]} 28... h5 {[%clk 0:00:47.3]} 29.
Re6 {[%clk 0:00:59.1]} 29... Ne5 {[%clk 0:00:38.4]} 30. Ne4 {[%clk 0:00:47.8]}
30... h4+ {[%clk 0:00:35]} 31. Kh2 {[%clk 0:00:46.8]} 31... Nxf3+ {[%clk
0:00:26.7]} 32. Rxf3 {[%clk 0:00:41.6]} 32... Rxf3 {[%clk 0:00:25]} 33. Bxf3
{[%clk 0:00:42.5]} 1-0

[Event "*** Titled Tuesday Blitz"]
[Site "Chess.com"]
[Date "2021.02.16"]
[Round "8"]
[White "Leo_C"]
[Black "Kaslask"]
[Result "1-0"]
[WhiteElo "2426"]
[BlackElo "2260"]
[TimeControl "180+1"]
[EndTime "11:28:49 PST"]
[Termination "Leo_C won on time"]

1. d4 {[%clk 0:03:00.9]} 1... Nf6 {[%clk 0:02:58.5]} 2. c4 {[%clk 0:03:00.7]}
2... g6 {[%clk 0:02:58.6]} 3. f3 {[%clk 0:03:00.5]} 3... Bg7 {[%clk 0:02:58]} 4.
e4 {[%clk 0:03:00.1]} 4... d6 {[%clk 0:02:58.1]} 5. Nc3 {[%clk 0:03:00.6]} 5...
O-O {[%clk 0:02:57.7]} 6. Be3 {[%clk 0:03:01.2]} 6... a6 {[%clk 0:02:56]} 7. Qd2
{[%clk 0:02:59.8]} 7... Nbd7 {[%clk 0:02:56]} 8. O-O-O {[%clk 0:02:55.4]} 8...
b5 {[%clk 0:02:54]} 9. e5 {[%clk 0:02:50.2]} 9... Ne8 {[%clk 0:02:47.8]} 10.
cxb5 {[%clk 0:02:38.5]} 10... dxe5 {[%clk 0:02:30.4]} 11. dxe5 {[%clk
0:02:34.6]} 11... Bxe5 {[%clk 0:02:30.2]} 12. bxa6 {[%clk 0:02:28.7]} 12... Nd6
{[%clk 0:02:27.9]} 13. h4 {[%clk 0:02:18.9]} 13... Bxa6 {[%clk 0:02:21.5]} 14.
Bxa6 {[%clk 0:02:15.4]} 14... Rxa6 {[%clk 0:02:20.7]} 15. h5 {[%clk 0:02:15]}
15... Qa8 {[%clk 0:02:17.8]} 16. hxg6 {[%clk 0:02:07.5]} 16... hxg6 {[%clk
0:01:47.8]} 17. Bd4 {[%clk 0:02:02.5]} 17... Bxd4 {[%clk 0:01:21.8]} 18. Qxd4
{[%clk 0:01:58.3]} 18... Nf6 {[%clk 0:01:19.2]} 19. Qh4 {[%clk 0:01:55.6]} 19...
Nh5 {[%clk 0:01:14.1]} 20. g4 {[%clk 0:01:55.1]} 20... Rxa2 {[%clk 0:01:12]} 21.
gxh5 {[%clk 0:01:45.5]} 21... Rxb2 {[%clk 0:01:10.1]} 22. Kxb2 {[%clk
0:01:38.3]} 22... Rb8+ {[%clk 0:01:04.1]} 23. Kc2 {[%clk 0:01:36.6]} 23... Qa3
{[%clk 0:00:57]} 24. Rb1 {[%clk 0:01:03.7]} 24... Rxb1 {[%clk 0:00:42]} 25. Nxb1
{[%clk 0:01:02.2]} 25... Qa2+ {[%clk 0:00:40.2]} 26. Kc1 {[%clk 0:00:59.9]}
26... Nc4 {[%clk 0:00:33.9]} 27. Rh2 {[%clk 0:00:52.8]} 27... Qa4 {[%clk
0:00:24]} 28. hxg6 {[%clk 0:00:45.6]} 1-0

[Event "*** Titled Tuesday Blitz"]
[Site "Chess.com"]
[Date "2021.02.16"]
[Round "8"]
[White "crazy_but_lazy"]
[Black "ClydeHillKid"]
[Result "0-1"]
[WhiteElo "2488"]
[BlackElo "2389"]
[TimeControl "180+1"]
[EndTime "11:28:51 PST"]
[Termination "ClydeHillKid won on time"]

1. e4 {[%clk 0:03:00.9]} 1... e6 {[%clk 0:02:55.8]} 2. d4 {[%clk 0:02:59.8]}
2... d5 {[%clk 0:02:55.6]} 3. Nd2 {[%clk 0:02:57.2]} 3... Nf6 {[%clk 0:02:54.2]}
4. e5 {[%clk 0:02:57.4]} 4... Nfd7 {[%clk 0:02:54]} 5. Bd3 {[%clk 0:02:58.1]}
5... c5 {[%clk 0:02:52.8]} 6. c3 {[%clk 0:02:58.8]} 6... Nc6 {[%clk 0:02:51.8]}
7. Ne2 {[%clk 0:02:58.6]} 7... Qb6 {[%clk 0:02:48.2]} 8. Nf3 {[%clk 0:02:52.4]}
8... cxd4 {[%clk 0:02:45.2]} 9. cxd4 {[%clk 0:02:51.4]} 9... f6 {[%clk
0:02:45.7]} 10. exf6 {[%clk 0:02:50.6]} 10... Nxf6 {[%clk 0:02:46.6]} 11. O-O
{[%clk 0:02:50.6]} 11... Bd6 {[%clk 0:02:44.7]} 12. a3 {[%clk 0:02:15.5]} 12...
O-O {[%clk 0:02:43.3]} 13. b4 {[%clk 0:02:14.8]} 13... e5 {[%clk 0:02:42.4]} 14.
dxe5 {[%clk 0:02:12.5]} 14... Nxe5 {[%clk 0:02:43.3]} 15. Nxe5 {[%clk
0:02:09.4]} 15... Bxe5 {[%clk 0:02:44.2]} 16. Rb1 {[%clk 0:02:02.8]} 16... Ng4
{[%clk 0:02:43.8]} 17. Qe1 {[%clk 0:00:19]} 17... Nxh2 {[%clk 0:02:21.3]} 18.
Be3 {[%clk 0:00:18]} 18... d4 {[%clk 0:02:08.3]} 19. Bf4 {[%clk 0:00:11.8]}
19... Bxf4 {[%clk 0:02:04.8]} 20. Nxf4 {[%clk 0:00:12.7]} 20... Nxf1 {[%clk
0:02:04.7]} 21. Nd5 {[%clk 0:00:07.8]} 21... Qd6 {[%clk 0:01:54.3]} 22. Ne7+
{[%clk 0:00:03.3]} 22... Kf7 {[%clk 0:01:52.2]} 23. Nxc8 {[%clk 0:00:03.7]}
23... Raxc8 {[%clk 0:01:48.9]} 24. Qxf1 {[%clk 0:00:04.4]} 24... Kg8 {[%clk
0:01:47.9]} 25. Rd1 {[%clk 0:00:04]} 25... Rc3 {[%clk 0:01:40.5]} 26. Qe2 {[%clk
0:00:04.4]} 26... Rxa3 {[%clk 0:01:33.7]} 27. Qe4 {[%clk 0:00:04.6]} 27... Qh6
{[%clk 0:01:25.5]} 28. Qxb7 {[%clk 0:00:03.5]} 28... Kh8 {[%clk 0:01:17.5]} 29.
Qd5 {[%clk 0:00:03.1]} 29... Qf4 {[%clk 0:01:05.6]} 30. f3 {[%clk 0:00:02.9]}
30... Qe3+ {[%clk 0:01:02.1]} 31. Kh1 {[%clk 0:00:01.6]} 31... Rxd3 {[%clk
0:01:01.8]} 32. Rxd3 {[%clk 0:00:01.1]} 32... Qxd3 {[%clk 0:01:02.7]} 33. Qd6
{[%clk 0:00:01.2]} 33... Qf5 {[%clk 0:00:59.5]} 34. Qxd4 {[%clk 0:00:01.3]}
34... a6 {[%clk 0:00:57.2]} 0-1